Cogmind - Beta 16 @@@ ROGUE MODE // 2025.10.25 @ 11:55:48 Player: human Result: Destroyed by D-53 Grenadier with Mini Grenade Launcher Performance ------------- Evolutions (0) 0 Regions Visited (2) 400 Robots Destroyed (18) 90 Value Destroyed (472) 472 Prototype IDs (0) 0 Alien Tech Used (0) 0 Bonus (0) 0 TOTAL SCORE: 962 Bonus ------- None Cogmind --------- Core Integrity 0/250 Matter 206/300 Energy 265/265 System Corruption 0% Temperature Cool (0) Movement Treading (160) Location -10/Mines Parts ------- > --- POWER (1) -------- Improved Ion Engine > --- PROPULSION (2) --- Light Treads Light Treads > --- UTILITY (2) ------ Large Storage Unit Seismic Detector > --- WEAPON (2) ------- Shotgun Shotgun > --- INVENTORY (15) --- Improved Ion Engine Wheel Compact Wheel Improved Heat Sink Improved Heat Sink Large Matter Pod (82) Tractor Beam Particle Cannon Particle Cannon Particle Cannon Shotgun Shotgun Grenade Launcher Plasma Cutter Maul Peak State ------------ > --- POWER ------------ Improved Ion Engine > --- PROPULSION ------- Light Treads Light Treads > --- UTILITY ---------- Improved Heat Sink Large Storage Unit > --- WEAPON ----------- Particle Cannon Shotgun > --- INVENTORY -------- Improved Ion Engine Wheel Compact Wheel Improved Heat Sink Large Matter Pod Seismic Detector Tractor Beam Particle Cannon Particle Cannon Particle Cannon Shotgun Shotgun Shotgun Light Cannon Grenade Launcher [Rating: 14] Favorites ----------- Power Light Ion Engine Engine Light Ion Engine Propulsion Light Treads Treads Light Treads Utility Improved Heat Sink Device Improved Heat Sink Storage Large Storage Unit Processor Signal Interpreter Weapon Light Cannon Energy Gun Small Laser Energy Cannon Beam Cannon Ballistic Gun Light Assault Rifle Ballistic Cannon Light Cannon Launcher Grenade Launcher Build | -11 -10 -10 ------- Run | Yrd Mat Min Slots Evolved . | . . . Power . | . . . Propulsion . | . . . Utility . | . . . Weapon . | . . . Parts Attached 20 | 6 12 2 Power 4 | 1 3 . Engine 4 | 1 3 . Core . | . . . Reactor . | . . . Propulsion 3 | 2 1 . Treads 3 | 2 1 . Leg . | . . . Wheel . | . . . Hover . | . . . Flight . | . . . Utility 5 | 1 3 1 Device 2 | . 1 1 Storage 2 | 1 1 . Processor 1 | . 1 . Hackware . | . . . Protection . | . . . Artifact . | . . . Weapon 8 | 2 5 1 Energy Gun 1 | 1 . . Energy Cannon 2 | . 2 . Ballistic Gun 3 | 1 1 1 Ballistic Cannon 1 | . 1 . Launcher 1 | . 1 . Special Weapon . | . . . Impact Weapon . | . . . Slashing Weapon . | . . . Piercing Weapon . | . . . Special Melee Weapon . | . . . Unidentified Prototypes . | . . . Parts Lost 3 | . 3 . Power 2 | . 2 . Propulsion 1 | . 1 . Utility . | . . . Weapon . | . . . Highest Loss Streak 1 | . 1 . To Critical Strikes . | . . . Average Backups 8 | 2 8 15 Power . | . . 1 Propulsion 2 | 1 2 2 Utility 1 | . 1 4 Weapon 3 | . 3 7 Tool/Special . | . . . Unused Backups 14 | . 2 12 Power 1 | . . 1 Propulsion 2 | . . 2 Utility 3 | . . 3 Weapon 7 | . 2 5 Tool/Special 1 | . . 1 Average Slot Usage (%) 98 | . 98 100 Engine 13 | . 13 14 Treads 27 | . 27 28 Device 13 | . 12 14 Storage 14 | . 14 14 Energy Gun 4 | . 5 . Energy Cannon 4 | . 4 6 Ballistic Gun 10 | . 9 21 Ballistic Cannon 7 | . 8 . Peak Build Rating 14 | 6 14 14 Average Rating 9 | 5 9 13 On Entrance 6 | . 6 14 Avg Prop Armor Cover (%) . | . . . Naked Turns . | . . . Heaviest Build 35 | 10 35 35 Greatest Support 40 | 40 40 40 Greatest Overweight (x) . | . . . Average Overweight (x) . | . . . Largest Inventory Capacity 15 | 8 15 15 Average Capacity 12 | 7 12 15 Most Carried 15 | 4 15 15 Average Carried 8 | 2 8 15 Final Capacity 15 | 8 15 15 Final Carried 15 | 4 15 15 Class Distribution -------------------- 100% | Mutant Dominant Class ---------------- Mutant | -10/Materials Mutant | -10/Mines Resources | -11 -10 -10 ----------- Run | Yrd Mat Min Matter Collected 698 | 232 466 . Remotely . | . . . Salvage Created 456 | . 407 49 Parts 29 | . 29 . Haulers Intercepted . | . . . Recyclers Shooed . | . . . Parts Field Recycled . | . . . Retrieved Matter . | . . . Parts Self-Destructed . | . . . Prevented . | . . . Parts Restored . | . . . Kills | -11 -10 -10 ------- Run | Yrd Mat Min Combat Hostiles Destroyed 26 | . 16 10 Guns 12 | . 6 6 Cannons 8 | . 7 1 AOE 6 | . 3 3 Classes Destroyed 5 | . 4 1 Recycler 1 | . 1 . Operator 1 | . 1 . Swarmer 5 | . 5 . Grunt 11 | . 11 . Assembled 10 | . . 10 Best Kill Streak 10 | . 5 10 Combat Bots Only 10 | . 4 10 Max Kills in Single Turn 4 | . 2 4 Gunslinging . | . . . Exploded 2 | . 2 2 Melee . | . . . Uniques/NPCs Destroyed . | . . . Combat | -11 -10 -10 -------- Run | Yrd Mat Min Hostile Shots Fired 122 | . 92 30 Missed 35 | . 26 9 Hits 87 | . 66 21 Melee 3 | . . 3 Projectile 84 | . 66 18 AOE 2 | . . 2 Critical Strikes 2 | . 2 . Damage Taken 1176 | . 787 389 Core 262 | . 98 164 Absorbed by Shields . | . . . Core Remaining (%) 100 | 100 . . Volleys Fired 56 | . 49 7 Largest 2 | . 2 2 Hottest 91 | . 80 91 Shots Fired 112 | . 98 14 Gun 58 | . 47 11 Cannon 45 | . 44 1 Launcher 9 | . 7 2 Special . | . . . Kinetic 71 | . 60 11 Thermal 32 | . 31 1 Explosive 9 | . 7 2 Electromagnetic . | . . . Robot Hit Streak 10 | . 10 8 Robot Miss Streak 3 | . 3 3 Penetration Max . | . . . Secondary Targets 1 | . . 1 Max Gunslinging Chain 1 | . . 1 Shots Hit Robots 76 | . 65 11 Core Hits 53 | . 36 17 Critical Kills 1 | . . 1 Critical Parts Destroyed . | . . . Critical Strikes 3 | . 2 1 Destroy 1 | . . 1 Blast 2 | . 2 . Melee Attacks . | . . . Impact . | . . . Slashing . | . . . Piercing . | . . . Sneak Attacks . | . . . Combat Hostiles . | . . . Follow-up Attacks . | . . . Damage Inflicted 1791 | . 1268 523 Guns 437 | . 302 135 Cannons 501 | . 481 20 Explosions 853 | . 485 368 Melee . | . . . Ramming . | . . . Kinetic 596 | . 461 135 Thermal 342 | . 322 20 Explosive 853 | . 485 368 Electromagnetic . | . . . Impact . | . . . Slashing . | . . . Piercing . | . . . Highest Corruption . | . . . Average Corruption . | . . . Corruption Purged . | . . . Corruption Blocked . | . . . Overload Shots . | . . . Overflow Damage 60 | . 29 31 Projectiles 10 | . 10 . Explosions 50 | . 19 31 Melee . | . . . Knockbacks 2 | . 2 . Impact . | . . . Kinetic 2 | . 2 . Secondary . | . . . Self-Inflicted Damage 8 | . 8 . Shots 1 | . 1 . Rammed . | . . . Targets Rammed . | . . . Kicked . | . . . Crushed . | . . . Highest Temperature 130 | . 130 4 Average Temperature 38 | . 38 4 Received Heat Transfer 386 | . 366 20 Siege Activations . | . . . Martial Activations . | . . . Shielding Activations . | . . . Robots Disrupted . | . . . Combat Hostiles . | . . . Robots Corrupted . | . . . Combat Hostiles . | . . . Parts Fried . | . . . Impact Corruptions . | . . . Robots Melted . | . . . Combat Hostiles . | . . . Parts Melted . | . . . Heat Transferred 719 | . 682 37 Parts Sabotaged . | . . . Parts Stolen . | . . . Parts Stripped . | . . . Power Chain Reactions . | . . . Alert | -11 -10 -10 ------- Run | Yrd Mat Min Maximum Alert Level 1 | . 1 . Low Security (%) 98 | 100 97 100 Level 1 1 | . 2 . Level 2 . | . . . Level 3 . | . . . Level 4 . | . . . Level 5 . | . . . High Security . | . . . Max Security . | . . . Peak Influence 209 | . 209 40 Initial 40 | . . 40 Average 78 | . 90 17 Influence Increases 562 | . 553 9 Destroy 0b10 Robot/C 320 | . 320 . Destroy 0b10 Robot/NC 10 | . 10 . Destroy Leader 90 | . 90 . Successful Hack 19 | . 19 . Select Force Hacks 60 | . 60 . Destroy Structure 48 | . 39 9 Lose Combat Pursuer 15 | . 15 . Influence Decreases 562 | . 448 114 Entered New Map 65 | . . 65 Time Decay 467 | . 418 49 Lost Part 30 | . 30 . Squads Dispatched 5 | . 5 . Investigation 3 | . 3 . Extermination . | . . . Reinforcement 2 | . 2 . Assault . | . . . Garrison . | . . . Intercept . | . . . Searches Triggered . | . . . Construction Impeded . | . . . Haulers Reinforced . | . . . Active Scanning Responses . | . . . Cargo Convoy Interrupts . | . . . Stealth | -11 -10 -10 --------- Run | Yrd Mat Min Distress Signals 2 | . 1 1 Communications Jammed . | . . . Distress Signals . | . . . Times Spotted 36 | . 24 12 Peak Tracking Total 14 | . 5 14 Tactical Retreats 2 | . 1 1 Traps | -11 -10 -10 ------- Run | Yrd Mat Min Traps Triggered 2 | . 2 . Indirectly . | . . . Trap Hack Attempts . | . . . Triggered . | . . . Disarmed . | . . . Reprogrammed . | . . . Reused . | . . . Traps Extracted . | . . . Installed . | . . . Triggered . | . . . Machines | -11 -10 -10 ---------- Run | Yrd Mat Min Machines Disabled . | . . . Max in Single Turn . | . . . Machines Repaired . | . . . Machines Dismantled . | . . . Machines Sabotaged . | . . . Overloaded Fab Kills . | . . . Hacking | -11 -10 -10 --------- Run | Yrd Mat Min Machines Accessed 8 | . 8 . Terminals 6 | . 6 . Fabricators . | . . . Repair Stations . | . . . Recycling Units 2 | . 2 . Scanalyzers . | . . . Garrison Access . | . . . Total Hacks 21 | . 21 . Successful 10 | . 10 . Failed 11 | . 11 . Catastrophic . | . . . Database Lockouts . | . . . Manual 19 | . 19 . Terminals 19 | . 19 . Fabricators . | . . . Repair Stations . | . . . Recycling Units 2 | . 2 . Scanalyzers . | . . . Garrison Access . | . . . Terminal Hacks 2 | . 2 . Robot Analysis 2 | . 2 . Fabricator Hacks . | . . . Repair Station Hacks . | . . . Recycling Unit Hacks . | . . . Scanalyzer . | . . . Garrison Access Hacks . | . . . Unauthorized Hacks 8 | . 8 . Terminals 6 | . 6 . Botnet 1 | . 1 . Skim 5 | . 5 . Fabricators . | . . . Repair Stations . | . . . Recycling Units 2 | . 2 . Tunnel 2 | . 2 . Scanalyzers . | . . . Garrison Access . | . . . Data Cores Recovered . | . . . Used . | . . . Hacking Detections 5 | . 5 . Full Trace Events . | . . . Feedback Events . | . . . Feedback Blocked . | . . . Robot Schematics Acquired . | . . . Robots Built . | . . . Authchips . | . . . Time . | . . . Total Robot Build Rating . | . . . Part Schematics Acquired . | . . . Parts Built . | . . . Authchips . | . . . Time . | . . . Total Part Build Rating . | . . . Part Studies Acquired . | . . . Parts Repaired . | . . . Time . | . . . Parts Recycled . | . . . Recycled Matter . | . . . Retrieved Matter . | . . . Retrieved Components . | . . . Parts Scanalyzed . | . . . Part Schematics Acquired . | . . . Parts Damaged . | . . . Bothacking | -11 -10 -10 ------------ Run | Yrd Mat Min Used RIF Installer . | . . . Robots Hacked . | . . . Non-combat . | . . . Combat . | . . . Robot Hacks Applied . | . . . Relay Couplers Released . | . . . Fabnet Peak Effective % . | . . . Robots Rewired . | . . . Allies Hacked . | . . . Hacks Repelled . | . . . Allies | -11 -10 -10 -------- Run | Yrd Mat Min Total Allies . | . . . Largest Group . | . . . Highest-Rated Group . | . . . Highest-Rated Ally . | . . . Total Orders . | . . . Ally Attacks . | . . . Total Damage . | . . . Kills . | . . . Allies Corrupted . | . . . Allies Melted . | . . . Intel | -11 -10 -10 ------- Run | Yrd Mat Min Active Infowar (turns) 60 | . . 60 Seismic 60 | . . 60 Robot Analysis Total 2 | . 2 . Derelict Logs Recovered 1 | . . 1 Drone Launches . | . . . Drone Recoveries . | . . . Exploration | -11 -10 -10 ------------- Run | Yrd Mat Min Turns Passed 1458 | 79 1243 136 Spaces Moved 757 | 44 647 66 Core 3 | 3 . . Treads 754 | 41 647 66 Legs . | . . . Wheels . | . . . Hover . | . . . Flight . | . . . Fastest Speed 50 | 50 160 160 Average Speed 159 | 152 160 160 Slowest Speed 160 | 160 160 160 Overloaded Moves . | . . . Propulsion Burnouts . | . . . Robots Hopped . | . . . Potential Cave-ins . | . . . Cave-ins Triggered . | . . . Exploration Rate (%) 40 | 4 96 22 Regions Visited 2 Branch Regions 1 Pre-discovered Areas 2 | . 2 . Known Exits Taken 1 | . 1 . Unknown Exits Taken 1 | 1 . . Scrap Searched . | . . . Spaces Dug . | . . . Terrain Destroyed 49 | . 40 9 Melee . | . . . Projectile . | . . . AOE 49 | . 40 9 Terrain Rammed . | . . . Walls Destroyed . | . . . Machines Disabled . | . . . Actions | -11 -10 -10 --------- Run | Yrd Mat Min Total 896 | 53 762 81 Wait 29 | . 24 5 Move 755 | 43 646 66 Hop . | . . . Pick Up 23 | 4 19 . Fast Attach 10 | 6 4 . Attach 3 | . 3 . Detach . | . . . Swap 12 | . 9 3 Drop 8 | . 8 . Fire 56 | . 49 7 Melee . | . . . Ram . | . . . Kick . | . . . Crush . | . . . Escape Stasis . | . . . Rewire . | . . . Trap . | . . . Miscellaneous . | . . . Route ------- -11/Scrapyard -10/Materials (discovered 6 exits: [*Mat x3] / *Min x2 / [*Sub]) -10/Mines History --------- Turn | Location | Event 4 | -11/Scrapyard | Discovered new exit (range 16) 80 | -11/Scrapyard | Entered Materials 157 | -10/Materials | Discovered new exit (range 7) 244 | -10/Materials | Discovered new exit (range 4) 314 | -10/Materials | Identified exit to Mines 336 | -10/Materials | Build established: Mutant 436 | -10/Materials | Discovered exit to Mines (range 15) 680 | -10/Materials | Derelicts attacked the area 784 | -10/Materials | Discovered new exit (range 10) 892 | -10/Materials | Discovered new exit (range 14) 1166 | -10/Materials | Discovered new exit (range 5) 1323 | -10/Materials | Entered Mines 1333 | -10/Mines | Met a Derelict bent on vengeance 1360 | -10/Mines | Assembled infested the area 1364 | -10/Mines | Core integrity fell below 50% 1381 | -10/Mines | Core integrity fell below 20% 1415 | -10/Mines | Destroyed 10 combat bots 1440 | -10/Mines | Learned location of 1 exit from Materials 1459 | -10/Mines | Destroyed by D-53 Grenadier with Mini Grenade Launcher Last Messages --------------- 01360_ ALERT: Infestation in the mines, dispatching Demolisher response squad. 01372_ as-44129 destroyed. 01378_ as-65736 destroyed. 01378_ Destroyed Asb. Hover Unit. 01378_ as-50863 destroyed. 01378_ as-70593 destroyed. 01378_ as-52854 destroyed. 01381_ Destroyed Asb. Hover Unit. 01381_ Destroyed Asb. F-torch. 01381_ as-17327 destroyed. 01381_ as-82059 suffers critical hit (Destroy). 01381_ as-82059 destroyed. 01381_ as-45705 destroyed. 01388_ as-56140 destroyed. 01388_ Switching to secondary target: as-16740. 01394_ as-16740 destroyed. 01440_ Acquired derelict log, extracted data. Data stored: Materials exits (x1). 01455_ The unstable cave ceiling collapses. Map ----- +----------------------------------------------------+ | ???????????????????????????????????????????????? | | ???????????????????????????????????????????????? | | ???????????????????????????????????????????????? | | ???????????????????????????????????????????????? | | ???????????????????????????????????????????????? | | ???????????????????????????????????????????????? | | ???????????????????????????????????????????????? | | ???????????????????????????????????????????????? | | ???????????????????????????????????????????????? | | ???????????????????????????????????????????????? | | ?????????? ???????????????????????????????????? | | ?????????? ??????????????????????????????????? | | ??????????# ??????????????????????????????????? | | ?????????## #?????????????????????????????????? | | ?????????? ?????????????????????????????????? | | ??????????# ?????????????????????????????????? | | ?????????## #????????????????????????????????? | | ????????## #???????????????????????????????? | | ????????#= ##?????????????????????????????? | | ????????#% ##????????????????????????????? | | ????????# #????????????????????????????? | | ?????????# #????????????????????????????? | | ??????????# #########????????????????????? | | ?????????## ## # ###??????????????????? | | ????????## #??????????????????? | | ? d @ #??????????????????? | | ? ##### ## #??????????????????? | | ? !## ????## #### #??????????????????? | | ??????##### ??????####??# #??????????????????? | | ??????????####????????????# #???????????####???? | | ??????????????????????????# #??????????## ##??? | | ??????????????????????????# #?????????## #??? | | ??????????????????????????# ##????????# #??? | | ???????????????? ###????## ##???????# #??? | | ???????????????? ??## ##??????# #??? | | ??????????????? ## ##?????#### #??? | | ???????????????# #######??# ###? | | ????????????????# ## ##?# #? | | ????????????????# ### #? | | ???????????????# #### #? | | ???????????????# ### #?# #? | | ????????????????# ??# ## ### #? | | ????????????????## ???###### #### ## #? | | ?????????????????##=?????????#####??## #? | | ??????????????????#??????????????????# #? | | ?????????????????????????????????????## #? | | ??????????????????????????????????????### ##? | | ????????????????????????????????????????######?? | | ???????????????????????????????????????????????? | | ???????????????????????????????????????????????? | +----------------------------------------------------+ Best States ------------- Heat Dissipation 39 Energy Generation 12 Energy Capacity 265 Matter Stores 300 Matter Capacity 300 Sight Range 16 Terrain Scan Density 10 Evasion (%) 40 Recoil Reduction 2 Item Schematics ----------------- None Robot Schematics ------------------ None Fabricated ------------ Nothing Repaired ---------- Nothing Studied --------- None Alien Tech Used ----------------- None Achievements -------------- None Challenges ------------ None Game ------ Seed TitaniumCarbideMediator Manual? 0 Play Time 00:16:31 Cumulative 342.0 hours Start 2025.10.25 @ 11:18:03 End 2025.10.25 @ 11:55:48 Sessions 2 Manual Loads 0 Difficulty Rogue Special Mode None Game No. 264 Rogue 264 Adventurer 0 Explorer 0 Win Type - Total 4 Types 3/0/1/0/0/0/0/0/0/0 Lore% 81 Gallery% 68 Achievement% 42 Wizard Run 0 Options --------- Layout 1 ASCII 0 Keyboard 0 Movement Arrows Keybinds 0 Fullscreen 1 Font 24/Smallcaps Map View 50x35 Zoom Use 0% Tactical HUD 1 Map Filters NONE Filters NONE Steam 1 RUN: 4f89878d-9022-41d1-958e-51a0b3830830